bitfinex-derivatives/quotes_SOLF0:USTF0_20250130
["timestamp","ask_amount","ask_price","bid_price","bid_amount"]
[1738248140278,15.57295932,239.61,239.43,11.30765932]
[1738248140474,11.30765932,239.58,239.43,11.30765932]
[1738248140679,11.30765932,239.55,239.4,154.02292308]
[1738248141783,4.1765,239.47,239.45,0.02758127]
[1738248142184,11.30765932,239.49,239.4,142.71526376]
[1738248142383,4.1768,239.46,239.44,0.03127387]
[1738248142883,0.02987491,239.48,239.33,4.1789]
[1738248142884,1.39627491,239.48,239.33,4.1789]
[1738248143178,4.1774,239.42,239.31,4.1792]
[1738248143377,18.08799895,239.47,239.31,4.1792]
[1738248143877,0.02875145,239.41,239.37,0.02701335]
[1738248145781,0.02875145,239.41,239.25,82.62]
[1738248145976,18.08799895,239.47,239.27,18.08799895]
[1738248146680,4.1777,239.4,239.3,4.1793]
[1738248146882,0.02939784,239.39,239.35,0.02804603]
[1738248147079,18.08799895,239.43,239.23,18.08799895]
[1738248147276,18.08799895,239.43,239.35,0.0298937]
[1738248147483,0.02861952,239.39,239.35,0.0298937]
[1738248148176,4.1782,239.37,239.35,0.0298937]
[1738248148580,0.02861952,239.39,239.23,18.08799895]
[1738248148779,4.1782,239.37,239.26,4.1801]
[1738248149088,18.08799895,239.43,239.26,4.1801]
[1738248149383,4.1786,239.35,239.26,4.1801]
[1738248149582,18.08799895,239.43,239.28,4.1797]
[1738248149783,0.03104989,239.33,239.28,4.1797]
[1738248149988,18.08799895,239.43,239.28,4.1797]
[1738248150185,0.03036964,239.33,239.28,4.1797]
[1738248150382,4.1784,239.36,239.28,4.1797]
[1738248150583,0.02672161,239.33,239.28,4.1797]
[1738248150785,0.02672161,239.33,239.29,4.1796]
[1738248153485,0.02672161,239.33,239.25,4.1802]
[1738248153687,0.02672161,239.33,239.23,18.08799895]
[1738248154786,0.02672161,239.33,239.27,4.1799]
[1738248154988,0.02672161,239.33,239.23,18.08799895]
[1738248155282,0.02672161,239.33,239.04,18.08799895]
[1738248155486,18.08799895,239.36,239.17,18.08799895]
[1738248155681,0.03022785,239.24,239.16,4.1818]
[1738248155882,0.03022785,239.24,239.13,18.08799895]
[1738248156091,0.02654151,239.21,239.13,18.08799895]
[1738248156991,0.02654151,239.21,239.17,4.1815]
[1738248157492,0.02654151,239.21,239.15,4.182]
[1738248157791,0.02654151,239.21,239.13,18.08799895]
[1738248158492,0.02654151,239.21,239.17,4.1816]
[1738248158888,4.1812,239.2,239.13,4.1822]
[1738248159093,0.02654151,239.21,239.11,4.2974]
[1738248160493,0.02654151,239.21,239.11,2.854]
[1738248160893,0.02654151,239.21,239.13,18.08799895]
[1738248161094,0.02654151,239.21,239.17,4.1816]
[1738248161398,0.02654151,239.21,239.13,18.08799895]
[1738248161694,0.02654151,239.21,239.19,4.1812]
[1738248161995,0.02654151,239.21,239.13,18.08799895]
[1738248162898,0.02654151,239.21,239.17,4.1816]
[1738248163093,0.02654151,239.21,239.15,11.32244081]
[1738248163390,0.02654151,239.21,239.2,4.1812]
[1738248163697,0.02654151,239.21,239.15,11.32244081]
[1738248163893,0.02654151,239.21,239.16,4.1817]
[1738248164094,0.02654151,239.21,239.15,11.32244081]
[1738248166095,0.02654151,239.21,239.17,4.1816]
[1738248166893,0.02654151,239.21,239.16,4.1817]
[1738248167088,0.02654151,239.21,239.15,11.32244081]
[1738248167798,0.02654151,239.21,239.12,11.32244081]
[1738248168989,0.02654151,239.21,239.17,4.1817]
[1738248169192,0.02654151,239.21,239.15,11.32244081]
[1738248170697,0.02654151,239.21,239.19,4.1812]
[1738248171395,0.02654151,239.21,239.15,11.32244081]
[1738248171594,0.02654151,239.21,239.2,4.1812]
[1738248172597,15.54944081,239.35,239.18,11.32244081]
[1738248172798,4.1796,239.29,239.18,11.32244081]
[1738248173396,15.54944081,239.35,239.18,11.32244081]
[1738248173601,0.03206664,239.26,239.21,11.35097203]
[1738248173997,0.03206664,239.26,239.25,4.1803]
[1738248175492,0.03206664,239.26,239.21,11.35097203]
[1738248175998,4.21226664,239.26,239.21,11.35097203]
[1738248176201,0.03206664,239.26,239.21,4.20953122]
[1738248176400,4.1803,239.25,239.21,4.20953122]
[1738248176601,0.03206664,239.26,239.21,4.20953122]
[1738248176801,0.03206664,239.26,239.25,4.1803]
[1738248179406,4.1788,239.34,239.3,4.1794]
[1738248180100,4.1788,239.34,239.29,4.1796]
[1738248180605,0.03140966,239.34,239.29,4.20652529]
[1738248180904,0.03140966,239.34,239.29,0.02692529]
[1738248181405,0.03140966,239.34,239.32,4.179]
[1738248181607,0.03140966,239.34,239.3,11.32244081]
[1738248181797,0.03140966,239.34,239.33,15.50134081]
[1738248182100,54.10011582,239.51,239.33,11.32244081]
[1738248182307,54.10011582,239.51,239.41,4.1775]
[1738248182503,54.10011582,239.51,239.37,11.32244081]
[1738248182708,4.1765,239.47,239.37,11.32244081]
[1738248183103,0.02840426,239.44,239.4,0.02780718]
[1738248183299,0.02840426,239.44,239.4,4.20530718]
[1738248184505,0.02840426,239.44,239.4,0.02780718]
[1738248184910,0.02840426,239.44,239.43,4.1772]
[1738248185310,4.0935,239.55,239.43,15.49964081]
[1738248185509,4.0935,239.55,239.43,11.32244081]
[1738248186212,4.0935,239.55,239.47,4.1765]
[1738248186411,4.0935,239.55,239.4,11.32244081]
[1738248186611,0.02995777,239.53,239.49,0.03027603]
[1738248188704,0.02995777,239.53,239.5,4.1759]
[1738248188907,0.02995777,239.53,239.49,11.35271684]
[1738248190008,0.02995777,239.53,239.52,4.1756]
[1738248190614,0.02995777,239.53,239.52,15.49804081]
[1738248191415,2.6856,239.63,239.52,11.32244081]
[1738248191619,4.1739,239.62,239.57,4.1747]
[1738248191815,2.7715,239.71,239.59,11.32244081]
[1738248192817,0.02938369,239.67,239.63,0.03042743]
[1738248196920,4.20238369,239.67,239.63,0.03042743]
[1738248197414,4.1733,239.65,239.63,0.03042743]
[1738248197611,0.02938369,239.67,239.63,0.03042743]
[1738248199413,0.02938369,239.67,239.65,4.1732]
[1738248199623,0.02938369,239.67,239.63,0.03042743]
[1738248200121,0.02938369,239.67,239.63,4.20392743]
[1738248200317,0.02938369,239.67,239.63,0.03042743]
[1738248200516,4.1735,239.65,239.63,0.03042743]
[1738248200819,0.02938369,239.67,239.63,0.03042743]
[1738248201221,4.1734,239.65,239.63,0.03042743]
[1738248201523,0.02938369,239.67,239.63,0.03042743]
[1738248202021,11.32244081,239.66,239.53,11.32244081]
[1738248202222,1.3594,239.65,239.53,11.32244081]
[1738248202816,11.32244081,239.55,239.37,2.7831]
[1738248203225,0.02818944,239.5,239.47,4.1764]
[1738248203424,0.02818944,239.5,239.45,0.02880431]
[1738248203624,0.0307074,239.5,239.46,0.02950145]
[1738248203924,0.0307074,239.5,239.47,4.1765]
[1738248204426,0.0307074,239.5,239.48,4.1762]
[1738248204724,0.0307074,239.5,239.46,0.02950145]
[1738248205823,0.0307074,239.5,239.49,11.32244081]
[1738248206022,1.3516,239.64,239.49,11.32244081]
[1738248206222,1.3516,239.64,239.52,11.32244081]
[1738248206519,5.5253,239.64,239.56,4.1749]
[1738248206917,5.5253,239.64,239.52,11.32244081]
[1738248207116,0.03036021,239.62,239.58,0.02744937]
[1738248208024,0.03036021,239.62,239.58,11.34989018]
[1738248208325,0.03036021,239.62,239.58,15.52429018]
[1738248209224,0.03036021,239.62,239.58,0.02744937]
[1738248210023,4.1742,239.6,239.58,0.02744937]
[1738248210219,0.03036021,239.62,239.58,0.02744937]
[1738248212225,4.1741,239.61,239.58,0.02744937]
[1738248212727,0.03036021,239.62,239.58,0.02744937]
[1738248212926,4.1742,239.6,239.58,0.02744937]
[1738248213622,0.03036021,239.62,239.58,0.02744937]
[1738248215028,0.03036021,239.62,239.58,4.20194937]
[1738248216329,0.03036021,239.62,239.58,0.02744937]
[1738248216628,11.35280102,239.62,239.58,0.02744937]
[1738248217920,4.1744,239.59,239.58,0.02744937]
[1738248218924,11.35280102,239.62,239.49,4.1761]
[1738248219130,11.32244081,239.65,239.49,11.32244081]
[1738248219329,11.32244081,239.59,239.46,11.32244081]
[1738248219531,4.1754,239.53,239.42,11.32244081]
[1738248220028,4.1745,239.59,239.48,11.32244081]
[1738248220228,0.03157921,239.5,239.45,0.03027242]
[1738248220425,12.63724081,239.66,239.41,0.74967579]
[1738248220730,0.03031146,239.56,239.49,11.32244081]
[1738248220932,0.03031146,239.56,239.53,11.32244081]
[1738248221127,0.03031146,239.56,239.55,4.1751]
[1738248221433,0.02909189,239.58,239.53,11.35424376]
[1738248221725,0.02909189,239.58,239.56,4.1749]
[1738248222735,0.02909189,239.58,239.54,4.1751]
[1738248223228,0.02909189,239.58,239.53,11.35424376]
[1738248223436,0.02909189,239.58,239.57,4.1747]
[1738248223824,4.1728,239.69,239.63,4.1737]
[1738248224030,4.1728,239.69,239.63,11.32244081]
[1738248224225,1.3213,239.78,239.63,11.32244081]
[1738248224524,1.3213,239.78,239.66,11.32244081]
[1738248224930,4.1717,239.75,239.67,4.1728]
[1738248225130,0.02674542,239.74,239.7,0.0291223]
[1738248225826,0.02674542,239.74,239.7,4.2015223]
[1738248226028,0.02674542,239.74,239.7,0.0291223]
[1738248229138,1.3213,239.85,239.72,18.032239]
[1738248229339,2.7659,239.91,239.76,18.032239]
[1738248229543,2.7659,239.91,239.8,4.1707]
[1738248229839,2.7659,239.91,239.76,18.032239]
[1738248230341,0.03076416,239.86,239.81,0.03121138]
[1738248232340,18.032239,240.03,239.85,18.032239]
[1738248232539,1.3547,240.02,239.85,18.032239]
[1738248233140,18.032239,239.99,239.82,2.7878]
[1738248233541,4.169,239.9,239.88,0.02851335]
[1738248233738,0.02894522,239.93,239.88,0.02851335]
[1738248234332,0.02894522,239.93,239.89,18.032239]
[1738248234642,0.02894522,239.93,239.91,4.1687]
[1738248234941,2.7259,240.03,239.89,18.032239]
[1738248235141,4.1678,239.97,239.9,4.1688]
[1738248235344,2.7259,240.03,239.89,18.032239]
[1738248236343,0.02836081,239.98,239.94,4.19927181]
[1738248236542,0.02836081,239.98,239.94,0.03117181]
[1738248237244,4.1679,239.96,239.94,0.03117181]
[1738248237439,0.02836081,239.98,239.94,7.181e-05]
[1738248238044,4.1681,239.95,239.94,7.181e-05]
[1738248240035,18.032239,239.95,239.73,18.032239]
[1738248240438,18.032239,239.95,239.7,4.1396]
[1738248240644,1.4429,239.97,239.81,18.032239]
[1738248240845,1.4429,239.97,239.77,18.032239]
[1738248241046,4.1691,239.9,239.82,4.1703]
[1738248241245,0.02954628,239.89,239.85,0.02728008]
[1738248241639,4.1696,239.87,239.85,0.02728008]
[1738248241839,0.02954628,239.89,239.85,0.02728008]
[1738248242352,4.1697,239.86,239.85,0.02728008]
[1738248243047,4.1704,239.82,239.76,4.1713]
[1738248243347,2.8485,239.88,239.73,18.032239]
[1738248244148,4.1703,239.83,239.73,18.032239]
[1738248244348,4.19863517,239.83,239.78,0.02877671]
[1738248244650,0.02833517,239.83,239.81,4.1705]
[1738248244848,1.4257,239.96,239.81,18.032239]
[1738248246053,4.169,239.9,239.85,4.1698]
[1738248246252,4.169,239.9,239.86,0.02763741]
[1738248246545,0.02973798,239.91,239.86,0.02763741]
[1738248247351,4.1695,239.87,239.86,0.02763741]
[1738248247552,4.1695,239.87,239.86,3.741e-05]
[1738248248953,4.1695,239.87,239.86,10.09426558]
[1738248249851,0.02973798,239.91,239.86,10.09426558]
[1738248250353,4.1695,239.87,239.86,10.09426558]
[1738248250548,0.02973798,239.91,239.87,10.09422817]
[1738248250749,0.02973798,239.91,239.88,10.09422817]
[1738248251051,0.02973798,239.91,239.89,10.09422817]
[1738248251248,0.02973798,239.91,239.9,10.09422817]
[1738248251455,4.19853798,239.91,239.9,10.09422817]
[1738248251650,4.19853798,239.91,239.9,18.29407468]
[1738248251850,1.4257,239.96,239.9,18.29407468]
[1738248252051,1.4257,239.96,239.91,10.09422817]
[1738248252252,4.1684,239.94,239.92,10.09422817]
[1738248252452,4.1684,239.94,239.93,10.09422817]
[1738248252653,4.1684,239.94,239.93,18.29407468]
[1738248255658,0.03025428,239.96,239.93,18.29407468]
[1738248255857,0.03025428,239.96,239.94,10.09422817]
[1738248256058,0.03025428,239.96,239.95,10.09422817]
[1738248256255,4.19815428,239.96,239.95,10.09422817]
[1738248256453,4.19815428,239.96,239.95,18.29407468]
[1738248257058,4.19815428,239.96,239.95,8.19984651]
[1738248257952,4.19815428,239.96,239.91,0.03031451]
[1738248257953,0.03025428,239.96,239.91,0.03031451]
[1738248258153,4.1686,239.92,239.91,0.03031451]
[1738248259257,4.1686,239.92,239.91,1.451e-05]
[1738248263560,4.1704,239.82,239.73,18.032239]
[1738248263761,4.1801,239.91,239.76,4.1713]
[1738248264165,4.1697,239.86,239.73,18.032239]
[1738248264362,4.1801,239.91,239.77,18.032239]
[1738248264562,4.1801,239.91,239.8,11.26091251]
[1738248264758,0.02631062,239.86,239.82,0.03165039]
[1738248267069,4.1702,239.83,239.82,0.03165039]
[1738248267562,4.1702,239.84,239.82,0.03165039]
[1738248267866,0.02631062,239.86,239.82,0.03165039]
[1738248268164,4.1702,239.83,239.82,0.03165039]
[1738248268765,4.1702,239.84,239.82,0.03165039]
[1738248269568,0.02631062,239.86,239.82,0.03165039]
[1738248269766,4.1702,239.83,239.82,0.03165039]
[1738248270966,11.26091251,239.83,239.7,5.0066763]
[1738248271166,11.26091251,239.83,239.7,0.8343763]
[1738248271372,11.26091251,239.77,239.64,142.71526376]
[1738248271570,11.26091251,239.74,239.64,142.71526376]
[1738248272272,0.02775081,239.71,239.67,0.03073049]
[1738248273177,4.1728,239.68,239.67,0.03073049]
[1738248274575,0.02775081,239.71,239.67,0.03073049]
[1738248274766,4.1727,239.69,239.67,0.03073049]
[1738248276271,0.02775081,239.71,239.67,0.03073049]
[1738248276472,4.1728,239.68,239.67,0.03073049]
[1738248279265,0.02775081,239.71,239.55,2.7711]
[1738248279471,18.04755448,239.73,239.55,2.7711]
[1738248280173,18.04755448,239.69,239.49,18.04755448]
[1738248280372,0.0317739,239.66,239.62,0.02822169]
[1738248280567,0.0317739,239.66,239.49,18.04755448]
[1738248280772,18.04755448,239.69,239.54,4.1751]
[1738248280972,0.02947683,239.6,239.55,0.02889705]
[1738248281776,0.02947683,239.6,239.55,4.20389705]
[1738248282976,4.20367683,239.6,239.55,0.02889705]
[1738248283977,4.1744,239.59,239.55,0.02889705]
[1738248284575,4.1746,239.58,239.55,0.02889705]
[1738248285182,4.1749,239.56,239.55,0.02889705]
[1738248285378,0.02947683,239.6,239.55,0.02889705]
[1738248286782,4.20387683,239.6,239.55,4.20379705]
[1738248287082,0.02947683,239.6,239.55,0.02889705]
[1738248287882,4.1745,239.59,239.55,0.02889705]
[1738248288182,0.02947683,239.6,239.55,0.02889705]
[1738248289679,4.1745,239.59,239.55,0.02889705]
[1738248289884,0.02947683,239.6,239.55,0.02889705]
[1738248290787,4.1747,239.58,239.55,0.02889705]
[1738248291892,4.1748,239.57,239.55,0.02889705]
[1738248292090,0.02947683,239.6,239.55,0.02889705]
[1738248292293,4.1749,239.56,239.55,0.02889705]
[1738248292487,0.02947683,239.6,239.55,0.02889705]
[1738248293090,4.1748,239.57,239.55,0.02889705]
[1738248293290,0.02947683,239.6,239.55,0.02889705]
[1738248293594,4.1749,239.56,239.55,0.02889705]
[1738248294483,4.20367683,239.6,239.55,0.02889705]
[1738248294686,0.02947683,239.6,239.55,0.02889705]
[1738248295290,4.1744,239.59,239.55,0.02889705]
[1738248297703,0.02947683,239.6,239.55,0.02889705]
[1738248298003,4.1746,239.58,239.55,0.02889705]
[1738248299000,4.1747,239.57,239.55,0.02889705]
[1738248299203,0.02947683,239.6,239.55,0.02889705]
[1738248299505,4.1749,239.56,239.55,0.02889705]
[1738248300002,4.1749,239.56,239.55,9.705e-05]
[1738248303001,0.02947683,239.6,239.55,9.705e-05]
[1738248303707,0.02947683,239.6,239.57,11.28618494]
[1738248304004,11.28618494,239.73,239.57,11.28618494]
[1738248304209,11.28618494,239.73,239.6,11.28618494]
[1738248305009,4.1725,239.7,239.63,4.1737]
[1738248305209,4.1725,239.7,239.64,0.0293785]
[1738248305210,0.02642649,239.69,239.64,0.0293785]
[1738248306211,4.1729,239.68,239.64,0.0293785]
[1738248306410,0.02642649,239.69,239.64,0.0293785]
[1738248307109,4.1732,239.66,239.64,0.0293785]
[1738248307310,0.02642649,239.69,239.64,0.0293785]
[1738248307710,4.173,239.67,239.64,0.0293785]
[1738248308308,4.1732,239.66,239.64,0.0293785]
[1738248308502,0.02642649,239.69,239.64,0.0293785]
[1738248308708,4.1733,239.66,239.64,0.0293785]
[1738248308907,0.02642649,239.69,239.64,0.0293785]
[1738248311916,0.02642649,239.69,239.68,4.1728]
[1738248312915,1.3537,239.81,239.73,4.1719]
[1738248313117,4.1713,239.77,239.69,11.28618494]
[1738248313319,1.3537,239.81,239.69,11.28618494]
[1738248313616,1.3537,239.81,239.72,4.1719]
[1738248314018,0.03107151,239.79,239.74,0.02929985]
[1738248314713,4.1716,239.75,239.74,0.02929985]
[1738248316317,4.1716,239.75,239.74,9.985e-05]
[1738248317518,5.4961,239.75,239.74,9.985e-05]
[1738248317720,4.1732,239.66,239.6,4.174]
[1738248317924,11.28618494,239.72,239.59,1.3767]
[1738248318218,4.1727,239.69,239.62,4.1737]
[1738248318520,4.1727,239.69,239.6,11.28618494]
[1738248318925,0.02897255,239.67,239.62,0.0290041]
[1738248319218,0.02897255,239.67,239.63,4.1736]
[1738248319422,0.02897255,239.67,239.63,11.28618494]
[1738248320114,0.02897255,239.67,239.62,0.0290041]
[1738248320619,4.20197255,239.67,239.62,0.0290041]
[1738248321619,0.02897255,239.67,239.62,0.0290041]
[1738248321917,11.28618494,239.66,239.62,4.1e-06]
[1738248322122,4.1737,239.63,239.62,4.1e-06]
[1738248322620,11.28618494,239.63,239.48,11.28618494]
[1738248323017,11.28618494,239.63,239.49,4.176]
[1738248323217,11.28618494,239.63,239.48,11.28618494]
[1738248323923,0.02831826,239.58,239.53,0.02715885]
[1738248325121,4.1749,239.56,239.53,0.02715885]
[1738248325325,0.02831826,239.58,239.53,0.02715885]
[1738248325520,0.02831826,239.58,239.54,11.28618494]
[1738248325924,0.02831826,239.58,239.55,4.175]
[1738248327426,0.02831826,239.58,239.56,4.1748]
[1738248327925,0.02831826,239.58,239.54,11.28618494]
[1738248328125,0.02831826,239.58,239.53,4.20255885]
[1738248329024,0.02831826,239.58,239.54,4.1752]
[1738248329326,0.02831826,239.58,239.53,0.02715885]
[1738248330928,4.1752,239.54,239.53,0.02715885]
[1738248331328,0.02831826,239.58,239.53,0.02715885]
[1738248332426,4.1749,239.56,239.53,0.02715885]
[1738248332629,0.02831826,239.58,239.53,0.02715885]
[1738248333026,4.1749,239.56,239.53,0.02715885]
[1738248333326,0.02831826,239.58,239.53,0.02715885]
[1738248334129,0.02831826,239.58,239.57,4.1747]
[1738248334330,0.02831826,239.58,239.53,11.31334379]
[1738248335331,0.02831826,239.58,239.55,4.1749]
[1738248335730,0.02831826,239.58,239.53,0.02715885]
[1738248336831,4.1751,239.56,239.53,0.02715885]
[1738248337031,0.02831826,239.58,239.53,11.31334379]
[1738248337634,0.02831826,239.58,239.54,4.1751]
[1738248337834,0.02831826,239.58,239.53,11.31334379]
[1738248338035,0.02831826,239.58,239.56,11.28618494]
[1738248338233,0.02831826,239.58,239.57,4.1747]
[1738248338430,4.1732,239.67,239.56,11.28618494]
[1738248338635,2.8305,239.75,239.53,0.02715885]
[1738248338636,2.8305,239.75,239.64,4.1733]
[1738248338933,2.8305,239.75,239.6,11.28618494]
[1738248339129,11.28618494,239.74,239.6,11.28618494]
[1738248339331,11.28618494,239.74,239.6,15.46028494]
[1738248339636,4.173,239.67,239.65,0.02979062]
[1738248339836,0.02785117,239.69,239.65,0.02979062]
[1738248341035,0.02785117,239.69,239.65,4.20299062]
[1738248341540,4.1729,239.68,239.65,0.02979062]
[1738248341742,0.02785117,239.69,239.65,0.02979062]
[1738248343441,0.02785117,239.69,239.66,11.28618494]
[1738248344941,0.02785117,239.69,239.65,0.02979062]
[1738248345547,0.02785117,239.69,239.68,4.1728]
[1738248345739,0.02785117,239.69,239.65,0.02979062]
[1738248346344,0.02785117,239.69,239.68,4.1728]
[1738248346545,11.28618494,239.83,239.66,11.28618494]
[1738248346940,11.28618494,239.83,239.69,11.28618494]
[1738248347536,4.1716,239.75,239.7,4.1724]
[1738248347741,4.1716,239.75,239.74,0.03205174]
[1738248347938,0.02971141,239.78,239.74,0.03205174]
[1738248348549,4.1715,239.76,239.74,0.03205174]
[1738248350750,4.20081141,239.78,239.74,4.20375174]
[1738248351452,4.20081141,239.78,239.74,0.03205174]
[1738248351642,4.1713,239.77,239.74,0.03205174]
[1738248352647,4.1715,239.76,239.74,0.03205174]
[1738248352943,0.02971141,239.78,239.74,0.03205174]
[1738248353350,4.1716,239.75,239.74,0.03205174]
[1738248354756,11.28618494,239.77,239.6,11.28618494]
[1738248355053,11.28618494,239.7,239.57,14.01888494]
[1738248355352,4.1736,239.64,239.57,1.335]
[1738248355752,4.1736,239.64,239.54,11.28618494]
[1738248355954,0.02777372,239.63,239.59,4.1743]
[1738248356752,0.02777372,239.63,239.58,0.02775846]
[1738248357854,0.02777372,239.63,239.6,4.1742]
[1738248358055,0.02777372,239.63,239.58,0.02775846]
[1738248359452,0.02777372,239.63,239.61,4.174]
[1738248359657,0.02777372,239.63,239.6,11.28618494]
[1738248360158,0.02777372,239.63,239.62,4.1738]
[1738248360352,14.06618494,239.82,239.6,11.28618494]
[1738248360555,14.06618494,239.82,239.68,11.28618494]
[1738248360755,11.28618494,239.79,239.65,11.28618494]
[1738248360957,11.28618494,239.79,239.62,11.28618494]
[1738248361257,4.1725,239.7,239.64,4.1734]
[1738248361455,4.1725,239.7,239.68,0.02655223]
[1738248361649,11.31514019,239.73,239.68,0.02655223]
[1738248361854,1.4077,239.72,239.68,0.02655223]
[1738248362256,4.1726,239.69,239.68,0.02655223]
[1738248363458,1.4077,239.72,239.68,0.02655223]
[1738248363857,0.02895525,239.73,239.68,0.02655223]
[1738248364255,4.1721,239.72,239.68,0.02655223]
[1738248364455,0.02895525,239.73,239.68,0.02655223]
[1738248364658,11.31514019,239.73,239.68,0.02655223]
[1738248365052,11.28618494,239.7,239.56,11.28618494]
[1738248365258,11.28618494,239.67,239.54,1.3988]
[1738248365457,11.28618494,239.67,239.53,11.28618494]
[1738248366356,0.03069208,239.62,239.58,0.03016204]
[1738248368460,4.1744,239.59,239.58,0.03016204]
[1738248368757,0.03069208,239.62,239.58,0.03016204]
[1738248370262,4.1741,239.61,239.58,0.03016204]
[1738248371068,0.03069208,239.62,239.58,0.03016204]
[1738248371659,4.20459208,239.62,239.58,0.03016204]
[1738248371860,0.03069208,239.62,239.58,0.03016204]
[1738248372861,0.03069208,239.62,239.6,4.1741]
[1738248373062,0.03069208,239.62,239.58,0.03016204]
[1738248373262,0.03069208,239.62,239.59,11.28618494]
[1738248373465,0.03069208,239.62,239.61,4.174]
[1738248373966,0.03069208,239.62,239.59,4.1742]
[1738248374466,0.03069208,239.62,239.61,4.174]
[1738248377268,0.03069208,239.62,239.59,11.28618494]
[1738248377574,0.03069208,239.62,239.58,0.03016204]
[1738248377771,4.20469208,239.62,239.58,0.03016204]
[1738248378475,4.174,239.61,239.58,0.03016204]
[1738248378675,0.03069208,239.62,239.58,0.03016204]
[1738248379374,4.1744,239.59,239.58,0.03016204]
[1738248379871,0.03069208,239.62,239.58,0.03016204]
[1738248380066,4.1742,239.6,239.58,0.03016204]
[1738248380974,4.1744,239.6,239.58,0.03016204]
[1738248381569,4.1744,239.59,239.58,0.03016204]
[1738248382269,0.03069208,239.62,239.51,4.1756]
[1738248382474,1.4143,239.61,239.47,11.28618494]
[1738248382677,12.70048494,239.61,239.49,4.1759]
[1738248383576,0.02724339,239.57,239.53,0.028431]
[1738248383967,4.1754,239.54,239.53,0.028431]
[1738248384571,4.20214339,239.57,239.53,0.028431]
[1738248385770,0.02724339,239.57,239.53,0.028431]
[1738248386581,0.02724339,239.57,239.55,4.1751]
[1738248387073,4.1751,239.55,239.53,0.028431]
[1738248387282,0.02724339,239.57,239.53,0.028431]
[1738248387774,4.1752,239.54,239.53,0.028431]
[1738248388179,1.4566,239.56,239.41,12.63588494]
[1738248388368,11.28618494,239.52,239.42,0.74965464]
[1738248388569,11.28618494,239.52,239.38,154.0014487]
[1738248388773,4.1756,239.53,239.48,4.1761]
[1738248389078,1.4566,239.56,239.47,11.28618494]
[1738248389273,0.03186907,239.53,239.48,0.02991305]
[1738248389478,4.20736907,239.53,239.48,0.02991305]
[1738248389874,0.03186907,239.53,239.48,0.02991305]
[1738248390074,0.03186907,239.53,239.48,4.20611305]
[1738248391675,0.03186907,239.53,239.48,0.02991305]
[1738248391876,11.31805401,239.53,239.48,0.02991305]
[1738248392075,4.1757,239.52,239.48,0.02991305]
[1738248392280,11.31805401,239.53,239.48,0.02991305]
[1738248392783,4.1761,239.49,239.48,0.02991305]
[1738248394381,11.31805401,239.53,239.48,0.02991305]
[1738248394782,4.1761,239.49,239.48,0.02991305]
[1738248394975,0.03186907,239.53,239.48,0.02991305]
[1738248397271,4.1761,239.49,239.48,0.02991305]
[1738248398380,4.1759,239.51,239.48,0.02991305]
[1738248398583,0.03186907,239.53,239.48,0.02991305]
[1738248399681,0.03186907,239.53,239.49,4.1761]
[1738248399980,0.03186907,239.53,239.48,0.02991305]
[1738248400180,4.1756,239.52,239.48,0.02991305]
[1738248402578,4.176,239.5,239.48,0.02991305]
[1738248402779,0.03186907,239.53,239.48,0.02991305]
[1738248404280,4.1761,239.49,239.48,0.02991305]
[1738248405281,0.03186907,239.53,239.48,0.02991305]
[1738248406078,4.1761,239.5,239.48,0.02991305]
[1738248406384,0.03186907,239.53,239.48,0.02991305]
[1738248407181,0.03186907,239.53,239.52,4.1756]
[1738248408089,11.28618494,239.68,239.5,11.28618494]
[1738248408292,4.1728,239.68,239.61,4.174]
[1738248408486,4.1949,239.71,239.57,11.28618494]
[1738248409188,4.1949,239.71,239.59,4.1743]
[1738248409389,0.02912528,239.66,239.62,0.02801823]
[1738248410382,4.1735,239.64,239.62,0.02801823]
[1738248410687,0.02912528,239.66,239.62,0.02801823]
[1738248412088,4.20232528,239.66,239.62,0.02801823]
[1738248412688,0.02912528,239.66,239.62,0.02801823]
[1738248414393,0.02912528,239.66,239.65,4.1733]
[1738248415294,0.02912528,239.66,239.62,0.02801823]
[1738248418394,0.02912528,239.66,239.62,4.20181823]
[1738248418693,4.20232528,239.66,239.62,4.20181823]
[1738248420498,0.02912528,239.66,239.62,0.02801823]
[1738248421405,4.1737,239.63,239.62,0.02801823]
[1738248421890,11.31531022,239.66,239.53,4.1753]
[1738248422193,11.28618494,239.66,239.51,11.28618494]
[1738248422693,11.28618494,239.69,239.51,11.28618494]
[1738248422895,11.28618494,239.69,239.54,11.28618494]
[1738248423092,0.02714028,239.62,239.58,0.02649973]
[1738248423992,4.20104028,239.62,239.58,4.20099973]
[1738248424193,0.02714028,239.62,239.58,0.02649973]
[1738248425196,0.02714028,239.62,239.6,4.174]
[1738248425390,0.02714028,239.62,239.58,0.02649973]